bitfinex/quotes_SOLUSD_20250919
["timestamp","ask_amount","ask_price","bid_price","bid_amount"]
[1758281429796,6.79746372,241.06,241.05,18.02843405]
[1758281429995,6.79746372,241.06,241.05,19.9556428]
[1758281430684,6.79746372,241.06,241.05,20.6656428]
[1758281431006,6.79746372,241.08,241.06,0.28432314]
[1758281431207,6.79746372,241.08,241.07,15.52280276]
[1758281431582,6.79746372,241.08,241.07,16.5171259]
[1758281431787,6.79746372,241.08,241.07,20.66529862]
[1758281431982,6.79746372,241.1,241.08,0.28432314]
[1758281432184,6.79746372,241.1,241.09,16.5171259]
[1758281433106,7.51746372,241.1,241.09,15.8071259]
[1758281433308,6.79746372,241.1,241.09,15.8071259]
[1758281433901,7.51746372,241.1,241.05,33.88720875]
[1758281434217,6.79746372,241.07,241.06,13.73775558]
[1758281434418,6.79746372,241.07,241.06,13.87991715]
[1758281434717,6.79746372,241.07,241.06,13.73775558]
[1758281434924,6.79746372,241.07,241.06,18.02826196]
[1758281435217,6.79746372,241.07,241.06,19.95547071]
[1758281435509,6.79746372,241.07,241.06,20.66547071]
[1758281435718,6.79746372,241.07,241.06,19.95547071]
[1758281437192,6.79746372,241.07,241.06,20.66547071]
[1758281437914,6.79746372,241.07,241.06,19.95547071]
[1758281439616,6.79746372,241.07,241.06,20.66547071]
[1758281440125,6.79746372,241.09,241.07,0.28432314]
[1758281440299,6.79746372,241.09,241.08,34.86153189]
[1758281440498,7.47053659,241.15,241.09,13.87991715]
[1758281440698,7.47053659,241.15,241.13,1.92720875]
[1758281440912,8.19053659,241.15,241.13,1.92720875]
[1758281441226,8.19053659,241.15,241.14,4.14696856]
[1758281442818,8.19053659,241.15,241.14,6.07417731]
[1758281443588,7.47053659,241.15,241.14,20.66409446]
[1758281444090,7.47053659,241.15,241.14,19.95409446]
[1758281444615,8.19053659,241.15,241.14,19.95409446]
[1758281446122,8.19053659,241.15,241.14,18.02688571]
[1758281446617,8.19053659,241.15,241.09,4.14782861]
[1758281446794,0.72,241.14,241.09,4.14782861]
[1758281446996,0.72,241.13,241.09,4.14782861]
[1758281447203,0.72,241.12,241.09,4.14782861]
[1758281448414,0.72,241.11,241.09,4.14782861]
[1758281448798,0.72,241.11,241.08,18.02791781]
[1758281449121,0.72,241.11,241.08,19.95512656]
[1758281449816,0.72,241.13,241.08,19.95512656]
[1758281450123,0.72,241.12,241.08,19.95512656]
[1758281451804,0.72,241.12,241.08,20.66512656]
[1758281452003,7.47053659,241.15,241.08,30.32512821]
[1758281452224,8.19053659,241.15,241.09,2.63720875]
[1758281452523,7.47053659,241.15,241.09,2.63720875]
[1758281452723,0.72,241.14,241.09,2.63720875]
[1758281452922,0.72,241.13,241.09,1.92720875]
[1758281453221,0.72,241.12,241.1,4.14765657]
[1758281453601,0.72,241.11,241.08,19.95501168]
[1758281454310,0.72,241.1,241.07,2.16526779]
[1758281454623,0.72,241.09,241.07,2.16526779]
[1758281455102,0.72,241.09,241.07,6.31339384]
[1758281456324,26.66,241.11,241.07,8.24060259]
[1758281456527,0.66,241.14,241.09,1.92720875]
[1758281456726,3.41363687,241.14,241.09,1.92720875]
[1758281457027,3.41363687,241.14,241.09,2.59720875]
[1758281457324,0.66,241.13,241.08,19.95497151]
[1758281457520,0.7,241.12,241.08,19.95497151]
[1758281457911,0.7,241.12,241.08,18.02776276]
[1758281458415,0.7,241.11,241.08,19.95497151]
[1758281458713,0.7,241.13,241.08,20.63497151]
[1758281458908,2.75363687,241.14,241.09,4.82766413]
[1758281459132,0.7,241.13,241.09,4.82766413]
[1758281459516,0.7,241.13,241.09,6.75487288]
[1758281459724,2.75363687,241.14,241.09,6.75487288]
[1758281459916,3.45363687,241.14,241.09,6.75487288]
[1758281460526,0.7,241.13,241.09,6.07487288]
[1758281460727,0.7,241.13,241.09,4.14766413]
[1758281460906,26.0,241.11,241.07,6.31343792]
[1758281461108,26.7,241.11,241.07,6.31343792]
[1758281461308,0.7,241.11,241.07,6.31343792]
[1758281461510,30.14733183,241.12,241.07,6.31343792]
[1758281461715,3.45388308,241.11,241.07,6.31343792]
[1758281461918,29.45388308,241.11,241.07,6.99343792]
[1758281462104,0.7,241.1,241.07,6.31343792]
[1758281463910,0.7,241.1,241.07,8.24064667]
[1758281464740,26.0,241.11,241.07,8.92064667]
[1758281465047,26.7,241.11,241.07,8.24064667]
[1758281465210,0.7,241.1,241.07,2.16526779]
[1758281465413,26.0,241.08,241.03,1.92720875]
[1758281465633,26.0,241.08,241.06,1.92720875]
[1758281465835,12.43705451,241.14,241.07,0.68]
[1758281465836,12.46183562,241.1,241.07,0.68]
[1758281466040,12.46183562,241.1,241.07,0.96432314]
[1758281466238,12.46183562,241.1,241.08,2.60720875]
[1758281466741,26.0,241.1,241.08,1.92720875]
[1758281467153,26.0,241.1,241.08,4.14800066]
[1758281468638,26.0,241.1,241.08,6.07520941]
[1758281468832,26.0,241.1,241.07,0.96432314]
[1758281468833,26.0,241.1,241.07,0.28432314]
[1758281469152,26.0,241.1,241.07,2.21153189]
[1758281469449,26.0,241.1,241.07,6.35963547]
[1758281471454,26.0,241.11,241.07,4.43242672]
[1758281471661,26.0,241.11,241.08,1.92720875]
[1758281471958,26.7,241.12,241.1,1.92720875]
[1758281472459,0.7,241.12,241.11,13.87991715]
[1758281473541,7.47053659,241.15,241.11,28.39611307]
[1758281473742,7.47053659,241.15,241.14,1.92720875]
[1758281475263,7.47053659,241.15,241.11,28.39611307]
[1758281475445,7.47053659,241.15,241.14,6.07417731]
[1758281478747,7.47053659,241.15,241.14,4.14696856]
[1758281478950,7.47053659,241.15,241.13,0.28432314]
[1758281479165,7.47053659,241.15,241.14,1.92720875]
[1758281479466,42.29721571,241.15,241.08,13.59559401]
[1758281479646,2.7526724,241.14,241.07,6.07538147]
[1758281479973,26.0,241.11,241.07,1.92720875]
[1758281480180,26.0,241.11,241.07,0.28432314]
[1758281480469,26.0,241.11,241.06,19.67111537]
[1758281480671,26.0,241.11,241.07,1.92720875]
[1758281481173,26.0,241.11,241.08,2.21153189]
[1758281481740,31.94,241.14,241.09,1.23374975]
[1758281481974,2.75222314,241.13,241.09,1.23374975]
[1758281482179,2.75222314,241.13,241.11,1.23374975]
[1758281482474,2.75227067,241.14,241.11,1.23374975]
[1758281482971,33.47053659,241.15,241.11,1.23374975]
[1758281483145,33.47053659,241.15,241.11,5.38107275]
[1758281483355,7.47053659,241.15,241.14,1.23374975]
[1758281484958,7.47053659,241.15,241.14,5.38071831]
[1758281485759,7.47053659,241.15,241.14,1.23374975]
[1758281485962,27.24900043,241.16,241.14,1.23374975]
[1758281486159,27.24900043,241.16,241.14,5.38069226]
[1758281486580,27.24900043,241.16,241.14,1.23374975]
[1758281487086,27.24900043,241.16,241.13,1.23374975]
[1758281488166,27.24900043,241.16,241.14,1.23374975]
[1758281488784,27.24900043,241.16,241.15,1.23374975]
[1758281488963,27.24900043,241.16,241.15,5.38054634]
[1758281489288,27.24900043,241.16,241.15,19.26046349]
[1758281490666,27.24900043,241.16,241.15,15.1136669]
[1758281492683,30.2461924,241.19,241.16,0.28432314]
[1758281492985,2.75514951,241.18,241.16,0.28432314]
[1758281493176,10.87222584,241.18,241.16,0.28432314]
[1758281493369,2.75514951,241.17,241.16,0.28432314]
[1758281494774,26.0,241.16,241.15,1.51807289]
[1758281496791,8.11707633,241.18,241.15,1.23374975]
[1758281496972,8.11707633,241.18,241.16,1.23374975]
[1758281502906,12.26336954,241.18,241.15,1.23374975]
[1758281504278,8.11707633,241.18,241.15,1.23374975]
[1758281504484,8.11707633,241.18,241.16,1.23374975]
[1758281506191,8.11707633,241.18,241.17,1.51807289]
[1758281506692,8.11707633,241.18,241.17,15.1136669]
[1758281507886,8.11707633,241.18,241.17,13.87991715]
[1758281508091,8.11707633,241.18,241.17,15.1136669]
[1758281508484,8.11707633,241.18,241.17,19.2601196]
[1758281509582,8.11707633,241.18,241.17,15.1136669]
[1758281511584,8.11707633,241.18,241.17,19.2601196]
[1758281517509,0.1,241.19,241.18,18.02619793]
[1758281517694,0.1,241.19,241.18,19.25994768]
[1758281521409,0.1,241.19,241.18,18.02619793]
[1758281521608,0.1,241.19,241.18,15.1136669]
[1758281522206,0.1,241.19,241.08,12.45252475]
[1758281522410,4.24618897,241.19,241.12,1.23374975]
[1758281522592,14.61146116,241.19,241.14,0.28432314]
[1758281522796,14.61146116,241.19,241.13,33.13374975]
[1758281523000,14.61146116,241.19,241.14,1.51807289]
[1758281523208,14.61146116,241.19,241.14,1.23374975]
[1758281523520,14.61146116,241.19,241.07,2.16528757]
[1758281523521,26.0,241.16,241.11,1.23374975]
[1758281523712,26.0,241.16,241.11,21.23374975]
[1758281523912,26.0,241.16,241.11,1.23374975]
[1758281524591,4.14679659,241.15,241.11,1.51807289]
[1758281525215,4.14679659,241.15,241.11,0.28432314]
[1758281525616,14.51378808,241.15,241.11,0.28432314]
[1758281526720,36.36699149,241.15,241.11,0.28432314]
[1758281527813,36.36699149,241.15,241.11,1.51807289]
[1758281528414,40.51378808,241.15,241.11,1.51807289]
[1758281531012,40.51378808,241.15,241.11,0.28432314]
[1758281531521,26.0,241.12,241.07,2.16528757]
[1758281532097,27.23374975,241.12,241.06,0.28432314]
[1758281532320,27.23374975,241.12,241.05,33.13374975]
[1758281532901,1.23374975,241.1,241.03,3.3998011]
[1758281533308,1.23374975,241.1,241.04,0.14216157]
[1758281533309,26.0,241.06,241.04,0.14216157]
[1758281533509,26.0,241.06,241.03,1.23374975]
[1758281533734,26.67,241.06,241.03,1.23374975]
[1758281533908,26.67,241.06,241.03,1.51807289]
[1758281534107,26.67,241.06,241.04,1.23374975]
[1758281534524,0.67,241.05,241.03,1.51807289]
[1758281535327,4.14868901,241.04,241.03,1.51807289]
[1758281536433,14.52041154,241.04,241.0,2.16624761]
[1758281536617,0.67,241.03,241.0,2.16624761]
[1758281536813,0.67,241.02,241.0,2.16624761]
[1758281537144,26.0,241.01,241.0,2.16624761]
[1758281537433,14.52282157,241.0,240.96,33.13374975]
[1758281537632,14.52282157,241.0,240.97,1.51807289]
[1758281537833,0.67,240.99,240.97,1.23374975]
[1758281538035,14.52282157,241.0,240.96,35.30052698]
[1758281538332,0.67,240.98,240.97,0.28432314]
[1758281538631,0.67,240.98,240.96,2.16677723]
[1758281538814,26.67,240.97,240.96,2.16677723]
[1758281539631,30.81989417,240.97,240.96,2.16677723]
[1758281543124,15.19462961,240.97,240.95,1.51807289]
[1758281543419,14.52462961,240.97,240.95,0.28432314]
[1758281543738,0.67,240.96,240.95,0.28432314]
[1758281543911,14.52462961,240.97,240.95,0.28432314]
[1758281544111,0.67,240.96,240.94,2.21435319]
[1758281544313,4.82023863,240.95,240.94,0.28432314]
[1758281544809,4.15023863,240.95,240.94,0.28432314]
[1758281545124,4.82023863,240.95,240.94,0.28432314]
[1758281545306,4.82023863,240.95,240.93,33.83003005]
[1758281545829,4.15023863,240.95,240.93,33.83003005]
[1758281546419,4.1500664,240.96,240.93,33.83003005]
[1758281546846,14.5252324,240.96,240.93,33.83003005]
[1758281547632,15.2052324,240.96,240.93,33.83003005]
[1758281548541,15.2052324,240.96,240.93,31.9]
[1758281548727,0.68,240.95,240.93,31.9]
[1758281549130,10.375166,240.96,240.93,31.9]
[1758281549331,11.055166,240.96,240.93,31.9]
[1758281549849,0.68,240.95,240.93,31.9]
[1758281550434,10.375166,240.96,240.93,31.9]
[1758281550623,15.2052324,240.96,240.93,31.9]
[1758281550823,14.5252324,240.96,240.94,2.62003005]
[1758281551064,14.5252324,240.96,240.95,0.69]
[1758281551355,14.5252324,240.96,240.94,1.93003005]
[1758281553252,10.375166,240.96,240.94,1.93003005]
[1758281555159,10.375166,240.96,240.93,34.52003005]
[1758281557158,0.68,240.98,240.93,34.52003005]
[1758281557338,0.68,240.97,240.94,1.93003005]
[1758281558956,4.1500664,240.96,240.94,1.93003005]
[1758281560162,14.5252324,240.96,240.93,34.52003005]
[1758281561344,14.5252324,240.96,240.93,32.59]
[1758281561548,26.0,240.94,240.93,31.9]
[1758281561852,0.68,240.94,240.92,0.06166512]
[1758281562448,0.68,240.93,240.92,0.06166512]
[1758281563461,4.83058315,240.93,240.92,0.06166512]
[1758281564949,32.7606132,240.93,240.92,0.06166512]
[1758281565150,30.83058315,240.93,240.92,0.06166512]
[1758281566148,4.83058315,240.93,240.92,0.06166512]
[1758281569470,4.83058315,240.93,240.91,0.1]
[1758281569667,40.52704104,240.93,240.87,1.93003005]
[1758281569852,40.52704104,240.93,240.88,13.87991715]
[1758281570047,4.15058315,240.93,240.92,2.21435319]
[1758281570652,4.15058315,240.93,240.92,0.28432314]
[1758281571282,26.0,240.94,240.93,0.28432314]
[1758281571474,26.0,240.94,240.88,32.16]
[1758281571654,26.0,240.94,240.91,0.28432314]
[1758281571852,26.0,240.94,240.91,0.97432314]
[1758281572072,26.0,240.94,240.91,0.28432314]
[1758281572453,26.68,240.94,240.91,0.28432314]
[1758281572978,26.68,240.94,240.89,2.40435319]
[1758281573158,4.15058315,240.93,240.89,0.47432314]
[1758281573364,4.15058315,240.93,240.89,2.40435319]
[1758281573873,26.0,240.95,240.89,13.59559401]
[1758281574050,26.0,240.95,240.93,1.93003005]
[1758281574555,26.0,240.95,240.89,13.59559401]
[1758281574770,26.0,240.95,240.93,1.93003005]
[1758281575078,26.0,240.95,240.92,1.93003005]
[1758281575257,4.15041089,240.94,240.92,1.93003005]
[1758281576978,4.15041089,240.94,240.93,1.93003005]
[1758281578488,4.15041089,240.94,240.9,0.97432314]
[1758281578671,4.15041089,240.94,240.93,1.93003005]
[1758281579169,8.29911639,240.98,240.94,0.28432314]
[1758281579370,8.29911639,240.98,240.97,0.28432314]
[1758281579559,8.29911639,240.98,240.97,16.4999472]
[1758281581177,12.44883835,240.98,240.97,13.87991715]
[1758281581384,12.44883835,240.98,240.97,15.8099472]
[1758281581683,12.44883835,240.98,240.97,13.87991715]
[1758281581890,12.44883835,240.98,240.97,15.8099472]
[1758281583476,12.44883835,240.98,240.97,13.87991715]
[1758281583679,12.44883835,240.98,240.97,15.8099472]
[1758281583895,8.29911639,240.98,240.97,16.4999472]
[1758281584108,26.0,241.03,240.99,0.28432314]
[1758281584109,4.14886113,241.03,240.99,0.28432314]
[1758281584306,6.90380931,241.06,241.02,2.21435319]
[1758281584592,6.90380931,241.06,241.04,0.28432314]
[1758281584772,4.14834481,241.06,241.05,1.93003005]
[1758281585187,4.14834481,241.06,241.05,2.62003005]
[1758281585569,2.8554645,241.09,241.05,1.93003005]
[1758281585570,4.14800066,241.08,241.05,1.93003005]
[1758281585768,4.14800066,241.08,241.04,0.28432314]
[1758281585769,4.14800066,241.08,241.07,1.93003005]
[1758281586407,15.22800231,241.08,241.05,1.93003005]
[1758281586579,3.4654645,241.07,241.05,1.93003005]
[1758281587312,2.7554645,241.07,241.05,1.93003005]
[1758281587514,4.14800066,241.08,241.06,1.93003005]
[1758281587669,4.14800066,241.08,241.07,1.93003005]
[1758281587978,4.14800066,241.08,241.06,0.69]
[1758281587979,30.14800066,241.08,241.06,0.69]
[1758281588183,30.14800066,241.08,241.07,1.93003005]
[1758281588482,14.51800231,241.08,241.06,0.28432314]
[1758281591316,14.51800231,241.08,241.05,15.52562406]
[1758281591317,26.0,241.04,240.94,1.93003005]
[1758281591507,0.71,241.03,240.99,13.59559401]
[1758281591708,0.71,241.03,241.0,0.28432314]
[1758281592027,4.14903327,241.02,241.0,0.28432314]
[1758281592312,14.52161645,241.02,240.99,13.59559401]
[1758281592818,0.71,241.01,240.99,13.59559401]
[1758281592990,8.23161645,241.02,240.99,13.59559401]
[1758281593186,8.23161645,241.02,241.0,0.28432314]
[1758281594021,12.38064972,241.02,241.0,0.28432314]
[1758281594191,12.38064972,241.02,240.99,0.28432314]
[1758281594617,14.31067977,241.02,240.99,0.28432314]
[1758281594912,12.38064972,241.02,240.99,0.28432314]
[1758281595124,15.02067977,241.02,240.99,0.28432314]
[1758281595498,1.93003005,241.0,240.93,13.59559401]
[1758281595829,1.93003005,240.98,240.94,32.1]
[1758281596113,4.14989417,240.97,240.95,0.28432314]
[1758281596721,14.52462961,240.97,240.94,32.79]
[1758281597100,14.52462961,240.97,240.95,0.14216157]
[1758281597299,14.52462961,240.97,240.95,0.28432314]
[1758281598307,14.52462961,240.97,240.93,32.38432314]
[1758281598501,17.16465966,240.97,240.93,32.1]
[1758281599004,16.45465966,240.97,240.93,32.79]
[1758281599533,14.52462961,240.97,240.93,32.79]
[1758281599715,16.45465966,240.97,240.93,32.79]
[1758281600323,0.71,240.96,240.93,32.1]
[1758281600501,0.71,240.95,240.93,32.1]
[1758281601416,26.0,240.94,240.9,13.87991715]
[1758281601744,0.71,240.93,240.9,0.28432314]
[1758281601930,27.93003005,240.94,240.9,0.28432314]
[1758281602124,26.0,240.94,240.91,0.69]
[1758281602301,4.15058315,240.93,240.92,2.21435319]
[1758281602504,4.15058315,240.93,240.92,2.90435319]
[1758281603441,4.15058315,240.93,240.92,0.97432314]
[1758281603926,4.15058315,240.93,240.92,32.40432314]
[1758281604234,14.5252324,240.96,240.92,32.40432314]
[1758281604728,15.76080301,240.96,240.92,32.40432314]
[1758281605099,16.47080301,240.96,240.92,32.40432314]
[1758281605330,14.5252324,240.96,240.92,32.40432314]
[1758281605826,15.2452324,240.96,240.92,32.40432314]
[1758281606027,14.5252324,240.96,240.92,32.40432314]
[1758281606334,1.23557061,240.95,240.91,32.1]
[1758281606515,1.23557061,240.95,240.91,32.82]
[1758281608225,16.48080301,240.96,240.91,32.82]
[1758281608440,15.76080301,240.96,240.91,32.1]
[1758281608933,15.76080301,240.96,240.92,0.72]
[1758281609301,4.15041089,240.94,240.92,0.72]
[1758281609739,14.52643811,240.94,240.91,32.1]
[1758281609923,14.52643811,240.94,240.91,32.82]
[1758281610324,15.76200872,240.94,240.91,32.1]
[1758281611112,14.52643811,240.94,240.91,32.82]
[1758281611308,26.0,240.95,240.92,0.72]
[1758281611511,27.23557061,240.95,240.92,0.72]
[1758281611829,26.0,240.94,240.91,32.1]
[1758281612131,27.23557061,240.94,240.91,32.08]
[1758281612302,26.0,240.94,240.91,32.08]
[1758281612505,27.23557061,240.94,240.91,32.08]
[1758281612737,26.0,240.94,240.91,32.8]
[1758281613332,14.52308182,241.0,240.93,13.59559401]
[1758281613540,14.52308182,241.0,240.96,1.23557061]
[1758281613720,40.52308182,241.0,240.96,33.31557061]
[1758281613923,14.52308182,241.0,240.97,0.72]
[1758281614311,40.52308182,241.0,240.97,0.72]
[1758281614834,11.60927484,241.0,240.97,0.72]
[1758281615022,12.32927484,241.0,240.96,32.08]
[1758281615220,38.32927484,241.0,240.96,32.08]
[1758281615435,1.23557061,240.98,240.96,32.08]
[1758281615618,26.0,240.97,240.96,32.08]
[1758281616527,30.14989417,240.97,240.96,32.08]
[1758281619316,30.14989417,240.97,240.96,32.8]
[1758281620039,4.14989417,240.97,240.96,33.08432314]
[1758281621044,10.37370423,241.0,240.97,0.28432314]
[1758281621428,10.37370423,241.0,240.98,0.72]
[1758281622433,10.37370423,241.0,240.97,0.28432314]
[1758281623546,14.52308182,241.0,240.97,0.28432314]
[1758281624240,14.52308182,241.0,240.97,1.00432314]
[1758281624744,26.0,241.02,240.99,1.23557061]
[1758281624942,4.14834481,241.06,241.01,1.51989375]
[1758281625142,17.26925799,241.06,241.02,0.72]
[1758281625346,14.5193336,241.06,241.03,1.23557061]
[1758281625660,14.5193336,241.06,241.04,1.95557061]
[1758281625860,4.14834481,241.06,241.05,1.95557061]
[1758281626463,4.14834481,241.06,241.05,1.23557061]
[1758281626749,4.14834481,241.06,241.04,32.04]
[1758281626949,4.14834481,241.06,241.05,0.72]
[1758281627451,4.14834481,241.06,241.04,33.27557061]
[1758281627626,4.14834481,241.06,241.04,32.04]
[1758281627825,4.14834481,241.06,241.04,32.76]
[1758281628027,4.14834481,241.06,241.05,0.72]
[1758281628247,4.14834481,241.06,241.04,33.27557061]
[1758281628453,4.14834481,241.06,241.04,33.99557061]
[1758281628749,4.14834481,241.06,241.04,33.27557061]
[1758281628948,4.14834481,241.06,241.05,0.72]
[1758281629132,4.14834481,241.06,241.05,1.95557061]
[1758281629543,8.61911303,241.07,241.05,1.51989375]
[1758281629728,8.61911303,241.07,241.06,1.51989375]
[1758281630045,8.61911303,241.07,241.06,34.27989375]
[1758281630547,8.61911303,241.07,241.06,46.63991715]
[1758281630738,8.61911303,241.07,241.06,47.87548776]
[1758281637742,12.76728575,241.07,241.06,47.87548776]
[1758281638641,8.61911303,241.07,241.06,47.87548776]
[1758281639235,12.76728575,241.07,241.06,47.87548776]
[1758281639852,0.1,241.09,241.08,0.28432314]
[1758281640057,0.1,241.09,241.08,34.19989375]
[1758281640939,0.1,241.09,241.08,32.96432314]
[1758281641139,0.1,241.09,241.08,34.19989375]
[1758281642365,0.1,241.09,241.08,47.79548776]
[1758281643866,0.1,241.09,241.08,46.55991715]
[1758281644049,0.1,241.09,241.08,47.79548776]
[1758281645843,0.1,241.09,241.08,46.55991715]
[1758281646050,4.24782861,241.09,241.08,47.09548776]
[1758281646683,4.24782861,241.09,241.08,47.77548776]
[1758281647250,0.1,241.09,241.08,47.77548776]
[1758281651394,4.24782861,241.09,241.08,47.77548776]
[1758281651559,4.24782861,241.09,241.08,47.09548776]
[1758281652273,4.24782861,241.09,241.08,47.77548776]
[1758281652676,4.24782861,241.09,241.08,47.09548776]
[1758281653085,4.24782861,241.09,241.08,15.11548776]
[1758281653250,4.91782861,241.09,241.08,45.85991715]
[1758281653456,4.91782861,241.09,241.08,31.96]
[1758281653888,4.24782861,241.09,241.08,33.47989375]
[1758281654260,0.1,241.09,241.08,47.07548776]
[1758281654553,0.1,241.09,241.08,47.75548776]
[1758281657186,4.24782861,241.09,241.08,47.75548776]
[1758281659398,0.1,241.09,241.08,47.75548776]
[1758281663328,0.1,241.09,240.83,20.02502496]
[1758281663329,4.91782861,241.09,240.99,2.16549748]
[1758281663613,1.23557061,241.03,240.96,9.23557061]
[1758281663822,26.67,241.02,240.97,8.0]
[1758281663982,0.67,241.01,240.97,8.0]
[1758281664182,0.67,241.0,240.97,8.0]
[1758281664418,26.0,241.02,240.97,8.0]
[1758281664419,0.67,240.99,240.97,8.0]
[1758281664616,1.92970905,241.02,240.97,8.0]
[1758281664921,4.81972196,240.98,240.97,8.0]
[1758281665098,4.14972196,240.98,240.97,23.52530306]
[1758281665502,4.14920542,241.01,240.99,0.28432314]
[1758281665690,4.14920542,241.01,241.0,34.37403219]
[1758281666902,14.5210946,241.03,241.01,0.28432314]
[1758281667095,0.69,241.02,241.01,2.21403219]
[1758281667309,0.69,241.02,241.01,0.28432314]
[1758281668316,4.83903327,241.02,241.01,0.28432314]
[1758281669295,14.5210946,241.03,241.01,0.28432314]
[1758281669718,15.2110946,241.03,241.01,0.28432314]
[1758281673256,14.5210946,241.03,241.01,0.28432314]
[1758281673653,14.5210946,241.03,241.01,2.21403219]
[1758281674159,14.5210946,241.03,241.01,0.28432314]
[1758281674445,15.2110946,241.03,241.01,32.42432314]
[1758281677025,14.5210946,241.03,241.01,32.42432314]
[1758281677225,14.5210946,241.03,241.01,35.05403219]
[1758281677626,14.5210946,241.03,241.01,34.35403219]
[1758281678036,4.14886113,241.03,241.02,2.21403219]
[1758281678259,4.14886113,241.03,241.02,2.91403219]
[1758281678437,4.14886113,241.03,241.02,16.5096262]
[1758281678835,4.83886113,241.03,241.02,0.28432314]
[1758281679034,4.83886113,241.03,241.02,32.40432314]
[1758281679931,4.14886113,241.03,241.02,32.40432314]
[1758281680526,4.83886113,241.03,241.02,32.40432314]
[1758281680727,4.14886113,241.03,241.02,32.40432314]
[1758281681261,4.83886113,241.03,241.02,32.40432314]
[1758281681634,15.20980916,241.05,241.02,32.40432314]
[1758281681850,0.69,241.04,241.02,32.40432314]
[1758281682746,4.83886113,241.03,241.02,32.40432314]
[1758281682948,4.14886113,241.03,241.02,32.40432314]
[1758281683631,4.83886113,241.03,241.02,32.12]
[1758281686532,4.14868901,241.04,241.02,32.12]
[1758281686732,4.83868901,241.04,241.02,32.12]
[1758281687369,4.14868901,241.04,241.03,16.5096262]
[1758281687537,4.14800066,241.08,241.05,0.28432314]
[1758281687856,4.14800066,241.08,241.07,2.21403219]
[1758281688054,4.24783295,241.09,241.08,13.59559401]
[1758281688260,4.24783295,241.09,241.08,16.22530306]
[1758281688550,4.24783295,241.09,241.08,16.5096262]
[1758281689636,0.1,241.09,241.08,16.5096262]
[1758281693532,4.24782861,241.09,241.08,16.5096262]
[1758281694763,0.1,241.09,241.08,16.5096262]
[1758281696064,4.24782861,241.09,241.08,14.57991715]
[1758281696248,4.24782861,241.09,241.08,16.5096262]
[1758281697774,0.1,241.09,241.08,50.66149682]
[1758281699042,0.1,241.09,241.08,48.73178777]
[1758281699767,0.1,241.09,241.08,46.80207872]
[1758281699974,0.1,241.09,241.08,16.65178777]
[1758281700145,0.1,241.09,241.08,48.5896262]
[1758281700349,0.1,241.09,241.08,48.5696262]
[1758281700742,4.24782861,241.09,241.08,15.52530306]
[1758281700958,4.24782861,241.09,241.08,47.58530306]
[1758281701166,0.1,241.09,241.08,48.5496262]
[1758281701343,4.24782861,241.09,241.08,48.5496262]
[1758281701958,4.24782861,241.09,241.08,47.8696262]
[1758281702372,4.24782861,241.09,241.08,48.5496262]
[1758281703167,4.24782861,241.09,241.08,47.8696262]
[1758281703364,4.24782861,241.09,241.08,0.28432314]
[1758281703554,4.92782861,241.09,241.08,45.67559401]
[1758281703760,4.92782861,241.09,241.08,45.95991715]
[1758281703956,4.92782861,241.09,241.01,13.59559401]
[1758281703957,17.22710918,241.09,241.01,13.59559401]
[1758281704153,1.92970905,241.06,240.98,1.92970905]
[1758281704357,0.68,241.05,241.02,32.08]
[1758281704554,0.68,241.05,240.91,33.6]
[1758281704555,0.68,241.04,240.91,33.6]
[1758281704757,0.68,241.04,241.01,32.1]
[1758281705757,4.14886113,241.03,241.01,32.1]
[1758281706358,4.82886113,241.03,241.01,32.1]
[1758281706575,4.14886113,241.03,241.01,32.1]
[1758281707773,14.52047782,241.04,241.01,32.1]
[1758281708960,0.68,241.03,241.01,32.1]
[1758281709474,0.68,241.02,241.01,32.1]
[1758281709774,4.14834481,241.06,241.02,13.87991715]
[1758281709977,4.14834481,241.06,241.05,1.92970905]
[1758281710181,4.14834481,241.06,241.05,34.33403219]
[1758281710958,14.51800231,241.08,241.05,34.33403219]
[1758281711246,0.68,241.07,241.05,32.12]
[1758281711450,0.68,241.07,241.04,32.12]
[1758281711662,14.51800231,241.08,241.04,32.12]
[1758281711846,15.19800231,241.08,241.04,32.12]
[1758281712048,0.68,241.07,241.04,32.12]
[1758281712575,0.68,241.06,241.04,32.12]
[1758281712949,14.51800231,241.08,241.04,32.12]
[1758281713146,4.14834481,241.06,241.04,32.12]
[1758281713979,4.82834481,241.06,241.04,32.12]